bitfinex-derivatives/quotes_BTCF0:USTF0_20251209
["timestamp","ask_amount","ask_price","bid_price","bid_amount"]
[1765311704631,0.03393,93234.0,93233.0,0.0107248]
[1765311704831,0.03393,93234.0,93233.0,0.0465648]
[1765311705031,0.06933,93220.0,93219.0,0.0107265]
[1765311705233,0.0315861,93223.0,93222.0,0.03584]
[1765311705529,0.06563055,93223.0,93222.0,0.03584]
[1765311705727,0.03404445,93223.0,93222.0,0.07289]
[1765311706322,0.03504445,93223.0,93222.0,0.07389]
[1765311706725,0.00111445,93223.0,93222.0,0.44389]
[1765311707125,0.00111445,93223.0,93222.0,0.38389]
[1765311707726,0.00211445,93223.0,93222.0,0.38489]
[1765311708025,0.07144445,93223.0,93222.0,0.002]
[1765311708727,0.07144445,93223.0,93222.0,0.03784]
[1765311709230,0.03604445,93223.0,93222.0,0.06979]
[1765311709425,0.00211445,93223.0,93222.0,0.06979]
[1765311710532,0.02086,93240.0,93222.0,0.432]
[1765311710732,0.067,93239.0,93238.0,0.0107243]
[1765311711029,0.03228,93239.0,93238.0,0.0773643]
[1765311711936,0.03628,93239.0,93238.0,0.0783643]
[1765311712130,0.004,93239.0,93238.0,0.0783643]
[1765311712632,0.006,93239.0,93238.0,0.0783643]
[1765311712832,0.006,93239.0,93238.0,0.4483643]
[1765311713139,0.03828,93239.0,93238.0,0.0783643]
[1765311713338,0.006,93239.0,93238.0,0.0783643]
[1765311713729,0.006,93239.0,93238.0,0.4983643]
[1765311714039,0.006,93239.0,93238.0,0.0783643]
[1765311715224,0.073,93239.0,93238.0,0.0464143]
[1765311715425,0.073,93239.0,93238.0,0.0117243]
[1765311717539,0.071,93239.0,93238.0,0.0117243]
[1765311717839,0.0837242,93239.0,93238.0,0.002]
[1765311718341,0.0817242,93239.0,93238.0,0.001]
[1765311718536,0.0837242,93239.0,93238.0,0.002]
[1765311719444,0.0777262,93223.0,93222.0,0.0107261]
[1765311719834,0.0777262,93223.0,93222.0,0.0773661]
[1765311720029,0.067,93223.0,93222.0,0.0773661]
[1765311720240,0.03228,93228.0,93227.0,0.06664]
[1765311720440,0.067,93219.0,93218.0,0.0773666]
[1765311720841,0.067,93219.0,93211.0,0.0107273]
[1765311720842,0.001,93223.0,93222.0,0.0773662]
[1765311721239,0.001,93223.0,93222.0,0.4573662]
[1765311721433,0.0107264,93220.0,93204.0,0.0107282]
[1765311721639,0.067,93218.0,93217.0,0.0107267]
[1765311721944,0.067,93218.0,93217.0,0.03469]
[1765311722244,0.067,93216.0,93200.0,0.25186268]
[1765311722451,0.08771,93216.0,93200.0,0.25186268]
[1765311722645,0.08771,93216.0,93212.0,0.0107273]
[1765311723149,0.08771,93216.0,93214.0,0.010727]
[1765311723550,0.08771,93216.0,93211.0,0.0107274]
[1765311723741,0.08871,93216.0,93215.0,0.00207279]
[1765311724248,0.0107262,93222.0,93221.0,0.0107263]
[1765311724555,0.067,93219.0,93218.0,0.0107266]
[1765311724858,0.067,93219.0,93218.0,0.03469]
[1765311725149,0.08871,93216.0,93215.0,0.03776279]
[1765311725735,0.08871,93216.0,93215.0,0.06971279]
[1765311725939,0.08771,93216.0,93215.0,0.06971279]
[1765311726142,0.08771,93216.0,93215.0,0.06771279]
[1765311726447,0.08871,93216.0,93215.0,0.06871279]
[1765311726746,0.08871,93216.0,93215.0,0.00107279]
[1765311726950,0.08871,93216.0,93215.0,0.00307279]
[1765311727447,0.08771,93216.0,93215.0,0.06771279]
[1765311727643,0.08971,93216.0,93215.0,0.03776279]
[1765311727838,0.08971,93216.0,93215.0,0.06971279]
[1765311728052,0.002,93216.0,93215.0,0.49971279]
[1765311728254,0.08440138,93232.0,93231.0,0.0773651]
[1765311728452,0.15140138,93232.0,93231.0,0.0773651]
[1765311728648,0.15140138,93232.0,93231.0,0.4673651]
[1765311728845,0.067,93232.0,93231.0,0.4673651]
[1765311729645,0.067,93232.0,93231.0,0.0773651]
[1765311729846,0.05701639,93271.0,93242.0,0.0720739]
[1765311730047,0.0107228,93251.0,93242.0,0.0720739]
[1765311730552,0.06174,93252.0,93251.0,0.0720728]
[1765311730853,0.01867,93276.0,93242.0,0.0107238]
[1765311730854,0.010721,93267.0,93242.0,0.0107238]
[1765311731050,0.03022,93259.0,93258.0,0.041322]
[1765311731251,0.03022,93259.0,93258.0,0.072072]
[1765311731749,0.01867,93252.0,93250.0,0.0107229]
[1765311731951,0.0107219,93260.0,93252.0,0.0107227]
[1765311732154,0.03022,93256.0,93255.0,0.0720723]
[1765311732350,0.0409419,93260.0,93259.0,0.06135]
[1765311732545,0.08041,93252.0,93251.0,0.0413228]
[1765311732948,0.08441,93252.0,93251.0,0.0720728]
[1765311733149,0.004,93252.0,93251.0,0.0720728]
[1765311733555,0.01867,93252.0,93251.0,0.0107227]
[1765311733747,0.08041,93252.0,93251.0,0.0107227]
[1765311734954,0.06174,93250.0,93249.0,0.00016083]
[1765311735558,0.0724629,93250.0,93249.0,0.00016083]
[1765311736351,0.004,93250.0,93249.0,0.43251083]
[1765311736651,0.004,93250.0,93249.0,0.06251083]
[1765311736857,0.06574,93250.0,93249.0,0.00116083]
[1765311737053,0.06874,93250.0,93249.0,0.00116083]
[1765311737464,0.06174,93232.0,93231.0,0.0107251]
[1765311738660,0.06274,93232.0,93231.0,0.4317251]
[1765311738860,0.06274,93232.0,93231.0,0.4623251]
[1765311739056,0.06374,93232.0,93231.0,0.0443251]
[1765311739461,0.06374,93232.0,93231.0,0.0757551]
[1765311739667,0.002,93232.0,93231.0,0.4257551]
[1765311739868,0.03206,93232.0,93231.0,0.0757551]
[1765311740058,0.06104,93232.0,93231.0,0.0757551]
[1765311740460,0.06104,93232.0,93231.0,0.003]
[1765311741869,0.05904,93218.0,93217.0,0.0107267]
[1765311742064,0.05904,93218.0,93217.0,0.0723767]
[1765311742665,0.05904,93218.0,93217.0,0.0409467]
[1765311743062,0.06104,93218.0,93217.0,0.0783767]
[1765311744970,0.06004,93218.0,93217.0,0.0733767]
[1765311745171,0.06104,93218.0,93217.0,0.0763767]
[1765311745365,0.06104,93218.0,93217.0,0.004]
[1765311748859,0.05904,93216.0,93215.0,0.00107279]
[1765311750170,0.06004,93216.0,93215.0,0.00107279]
[1765311750763,0.06004,93216.0,93215.0,0.06272279]
[1765311750971,0.06004,93216.0,93215.0,0.00207279]
[1765311750972,0.06104,93216.0,93215.0,0.00207279]
[1765311751172,0.06104,93216.0,93215.0,0.06372279]
[1765311751372,0.03206,93216.0,93215.0,0.06372279]
[1765311751771,0.002,93216.0,93215.0,0.46372279]
[1765311751969,0.06104,93216.0,93215.0,0.00207279]
[1765311752173,0.06104,93216.0,93215.0,0.06372279]
[1765311754075,0.002,93216.0,93215.0,0.36372279]
[1765311754466,0.06104,93216.0,93215.0,0.08372279]
[1765311754665,0.06104,93216.0,93215.0,0.06372279]
[1765311755165,0.002,93216.0,93215.0,0.06372279]
[1765311755364,0.002,93216.0,93215.0,0.45372279]
[1765311756161,0.07771,93236.0,93235.0,0.0723747]
[1765311756367,0.00016083,93241.0,93240.0,0.0723741]
[1765311756574,0.00016083,93241.0,93240.0,0.5061941]
[1765311757077,0.05904,93251.0,93250.0,0.0723729]
[1765311758273,0.06804,93251.0,93250.0,0.0723729]
[1765311758475,0.06804,93251.0,93250.0,0.06165]
[1765311758675,0.05904,93243.0,93242.0,0.0723738]
[1765311758869,0.049,93247.0,93246.0,0.06165]
[1765311759065,0.014,93251.0,93250.0,0.06165]
[1765311759279,0.014,93251.0,93250.0,0.48165]
[1765311759779,0.07304,93251.0,93250.0,0.06165]
[1765311760276,0.014,93251.0,93250.0,0.47165]
[1765311760477,0.005,93251.0,93250.0,0.47165]
[1765311760677,0.012,93251.0,93250.0,0.47165]
[1765311760982,0.007,93251.0,93250.0,0.47165]
[1765311761282,0.007,93251.0,93250.0,0.06165]
[1765311761775,0.01,93251.0,93250.0,0.06165]
[1765311762279,0.01,93251.0,93250.0,0.18165]
[1765311762482,0.01,93251.0,93250.0,0.48165]
[1765311762782,0.04006,93251.0,93250.0,0.48165]
[1765311763571,0.06904,93251.0,93250.0,0.48165]
[1765311763775,0.05904,93248.0,93247.0,0.0107233]
[1765311763974,0.05904,93248.0,93247.0,0.0723733]
[1765311764380,0.05904,93242.0,93241.0,0.03038083]
[1765311764883,0.05904,93242.0,93241.0,0.06181083]
[1765311765780,0.06104,93242.0,93241.0,0.06181083]
[1765311766573,0.06104,93242.0,93241.0,0.49181083]
[1765311766574,0.03206,93242.0,93241.0,0.49181083]
[1765311766787,0.007,93242.0,93241.0,0.49181083]
[1765311767283,0.07798,93258.0,93257.0,0.0723721]
[1765311768081,0.05904,93258.0,93257.0,0.0723721]
[1765311768287,0.0107205,93272.0,93259.0,0.06165]
[1765311768478,0.0107205,93272.0,93259.0,0.47165]
[1765311768678,0.0107201,93275.0,93259.0,0.47165]
[1765311768983,0.0107204,93273.0,93259.0,0.47165]
[1765311769482,0.0107199,93277.0,93259.0,0.47165]
[1765311769684,0.0677397,93279.0,93278.0,0.05641]
[1765311770686,0.05702,93279.0,93278.0,0.0671297]
[1765311770982,0.02981,93279.0,93278.0,0.0681297]
[1765311771177,0.002,93279.0,93278.0,0.0691297]
[1765311771375,0.05902,93279.0,93278.0,0.0691297]
[1765311772085,0.05902,93279.0,93278.0,0.05841]
[1765311772281,0.05902,93279.0,93278.0,0.0127197]
[1765311772475,0.05902,93279.0,93278.0,0.002]
[1765311772987,0.05702,93270.0,93269.0,0.00016083]
[1765311773177,0.05702,93270.0,93258.0,0.01067599]
[1765311773178,0.05702,93259.0,93258.0,0.01067599]
[1765311773781,0.05702,93259.0,93258.0,0.05641]
[1765311774288,0.05802,93259.0,93258.0,0.05841]
[1765311774779,0.05902,93259.0,93258.0,0.03596]
[1765311774978,0.05902,93259.0,93258.0,0.007]
[1765311775181,0.05802,93259.0,93258.0,0.005]
[1765311775378,0.05902,93259.0,93258.0,0.006]
[1765311776082,0.05902,93259.0,93258.0,0.002]
[1765311776688,0.06102,93259.0,93258.0,0.002]
[1765311777173,0.05702,93250.0,93249.0,0.01088383]
[1765311777574,0.05702,93250.0,93249.0,0.06729383]
[1765311777780,0.0389327,93252.0,93251.0,0.0396828]
[1765311777978,0.05702,93252.0,93251.0,0.0671328]
[1765311778687,0.02881,93256.0,93255.0,0.0671324]
[1765311778888,0.006,93259.0,93258.0,0.068132]
[1765311779083,0.003,93259.0,93258.0,0.068132]
[1765311779280,0.06002,93259.0,93258.0,0.001]
[1765311779485,0.05702,93259.0,93258.0,0.05641]
[1765311779785,0.0677414,93264.0,93263.0,0.05641]
[1765311780186,0.05702,93264.0,93263.0,0.05641]
[1765311780587,0.05702,93260.0,93259.0,0.0671319]
[1765311780786,0.0677423,93256.0,93255.0,0.05741]
[1765311781491,0.0677423,93256.0,93255.0,0.05641]
[1765311781989,0.0677429,93250.0,93249.0,0.05657083]
[1765311782178,0.003,93264.0,93257.0,0.02745]
[1765311782395,0.0707413,93264.0,93263.0,0.05641]
[1765311782686,0.0687413,93264.0,93263.0,0.05641]
[1765311782890,0.05802,93264.0,93263.0,0.05641]
[1765311783287,0.001,93264.0,93263.0,0.44641]
[1765311783596,0.00016083,93268.0,93267.0,0.05641]
[1765311783787,0.00016083,93268.0,93267.0,0.467131]
[1765311784992,0.00116083,93268.0,93267.0,0.468131]
[1765311785498,0.00216083,93268.0,93267.0,0.471131]
[1765311785693,0.00216083,93268.0,93267.0,0.46041]
[1765311785694,0.05918083,93268.0,93267.0,0.46041]
[1765311785898,0.06990173,93268.0,93267.0,0.004]
[1765311786289,0.00216083,93268.0,93267.0,0.071131]
[1765311786488,0.05918083,93268.0,93267.0,0.06041]
[1765311786689,0.05918083,93268.0,93267.0,0.004]
[1765311786894,0.08241728,93268.0,93267.0,0.004]
[1765311787096,0.08241728,93268.0,93249.0,0.02912083]
[1765311787097,0.05702,93250.0,93249.0,0.02912083]
[1765311787400,0.05702,93250.0,93249.0,0.00016083]
[1765311788288,0.05802,93250.0,93249.0,0.00116083]
[1765311788802,0.05902,93250.0,93249.0,0.00316083]
[1765311788997,0.05702,93226.0,93220.0,0.07655448]
[1765311789199,0.01234,93236.0,93204.0,0.07655448]
[1765311789200,0.05702,93216.0,93204.0,0.07655448]
[1765311789395,0.05702,93216.0,93204.0,0.0107282]
[1765311789700,0.010727,93215.0,93208.0,0.04007279]
[1765311789908,0.05702,93209.0,93208.0,0.04007279]
[1765311791303,0.01759,93214.0,93213.0,0.05597]
[1765311791304,0.02996,93214.0,93213.0,0.05597]
[1765311791497,0.001,93216.0,93208.0,0.41007279]
[1765311791498,0.001,93216.0,93215.0,0.05597]
[1765311791698,0.00016092,93221.0,93215.0,0.05597]
[1765311792295,0.02996,93216.0,93215.0,0.05597]
[1765311792486,0.05762092,93221.0,93220.0,0.05597]
[1765311792688,0.05746,93214.0,93213.0,0.03237]
[1765311793297,0.05746,93214.0,93213.0,0.005]
[1765311794000,0.05746,93214.0,93208.0,0.04007279]
[1765311794001,0.05746,93209.0,93208.0,0.04007279]
[1765311795202,0.05946,93209.0,93208.0,0.04607279]
[1765311795402,0.05946,93209.0,93208.0,0.10204279]
[1765311795804,0.05946,93209.0,93208.0,0.04607279]
[1765311796196,0.05946,93209.0,93208.0,0.07344279]
[1765311797704,0.05946,93209.0,93208.0,0.04607279]
[1765311798711,0.0701877,93209.0,93208.0,0.04607279]
[1765311800101,0.05946,93209.0,93208.0,0.04607279]
[1765311800304,0.0701877,93209.0,93208.0,0.04607279]
[1765311800501,0.0701877,93209.0,93165.0,0.00107337]
[1765311800502,0.0650097,93191.0,93165.0,0.00107337]
[1765311800706,0.0650097,93191.0,93180.0,0.010731]
[1765311801110,0.0650097,93191.0,93176.0,0.0107314]
[1765311801616,0.0650097,93191.0,93180.0,0.010731]
[1765311802002,0.0660097,93191.0,93190.0,0.00507308]
[1765311802198,0.05528,93191.0,93190.0,0.00507308]
[1765311802711,0.05628,93191.0,93190.0,0.00507308]
[1765311807911,0.05428,93177.0,93160.0,0.14377934]
[1765311808104,0.05428,93177.0,93176.0,0.0687015]
[1765311808306,0.00016092,93180.0,93179.0,0.0687011]
[1765311808717,0.05444092,93180.0,93179.0,0.0687011]
[1765311808914,0.054523,93180.0,93179.0,0.0687011]
[1765311809918,0.055523,93180.0,93179.0,0.0687011]
[1765311810112,0.0650115,93176.0,93175.0,0.0107316]
[1765311810313,0.0379318,93173.0,93172.0,0.0687019]
[1765311810613,0.0650118,93173.0,93172.0,0.05797]
[1765311810812,0.05428,93168.0,93167.0,0.0405025]
[1765311811113,0.013974,93180.0,93179.0,0.05797]
[1765311811418,0.041054,93180.0,93179.0,0.05797]
[1765311811602,0.057523,93180.0,93179.0,0.05797]
[1765311811807,0.002243,93180.0,93179.0,0.05797]
[1765311812008,0.002243,93180.0,93179.0,0.41797]
[1765311812612,0.003243,93180.0,93179.0,0.41797]
[1765311813115,0.003243,93180.0,93160.0,0.14377934]
[1765311813116,0.001243,93180.0,93168.0,0.4136]
[1765311813413,0.001243,93180.0,93170.0,0.14377934]
[1765311813614,0.001243,93180.0,93177.0,0.0107312]
[1765311813615,0.057523,93180.0,93177.0,0.0107312]
[1765311813811,0.057523,93180.0,93177.0,0.4307312]
[1765311814119,0.057523,93180.0,93179.0,0.0282]
[1765311814417,0.055523,93180.0,93179.0,0.0282]
[1765311814610,0.059523,93180.0,93179.0,0.0282]
[1765311816011,0.057523,93180.0,93179.0,0.0282]
[1765311816612,0.0650121,93171.0,93170.0,0.05797]
[1765311816921,0.0650121,93171.0,93170.0,0.35797]
[1765311817116,0.05428,93164.0,93163.0,0.0687029]
[1765311817311,0.0650128,93164.0,93150.0,0.14377934]
[1765311817517,0.05428,93154.0,93153.0,0.068704]
[1765311817819,0.05436208,93154.0,93153.0,0.068704]
[1765311818121,0.05436208,93154.0,93147.0,0.00649777]
[1765311818122,0.0107341,93153.0,93147.0,0.00649777]
[1765311818317,0.07058,93148.0,93147.0,0.06446777]
[1765311818722,0.06609608,93154.0,93153.0,0.05797]
[1765311819323,0.07058,93148.0,93147.0,0.03626777]
[1765311819511,0.07158,93148.0,93147.0,0.03626777]
[1765311819718,0.07158,93148.0,93147.0,0.06446777]
[1765311819911,0.07158,93148.0,93147.0,0.03626777]
[1765311820112,0.07158,93148.0,93147.0,0.00649777]
[1765311820313,0.07158,93148.0,93147.0,0.06446777]
[1765311821013,0.07158,93148.0,93120.0,0.00021456]
[1765311821014,0.05428,93141.0,93120.0,0.00021456]
[1765311821219,0.0650178,93121.0,93120.0,0.00021456]
[1765311821525,0.02708,93126.0,93125.0,0.05797]
[1765311821722,0.05428,93126.0,93125.0,0.05797]
[1765311821928,0.0650178,93121.0,93120.0,0.00021456]
[1765311822225,0.42509911,93121.0,93120.0,0.00021456]
[1765311822426,0.0650184,93116.0,93115.0,0.00107395]
[1765311823313,0.0650184,93116.0,93115.0,0.03084395]
[1765311823727,0.0650184,93116.0,93115.0,0.00107395]
[1765311823916,0.0670184,93116.0,93115.0,0.00107395]
[1765311824115,0.0670184,93116.0,93077.0,0.22036]
[1765311824116,0.0107413,93091.0,93064.0,0.07655448]
[1765311824324,0.0107413,93091.0,93048.0,0.0275262]
[1765311824325,0.05428,93070.0,93069.0,0.01086836]
[1765311824519,0.00010064,93070.0,93069.0,0.45809456]
[1765311825023,0.00010064,93070.0,93069.0,0.05809456]
[1765311825716,0.00610064,93070.0,93069.0,0.37809456]
[1765311826022,0.00610064,93070.0,93069.0,0.34809456]
[1765311826328,0.0001611,93091.0,93080.0,0.01678]
[1765311826329,0.0107414,93090.0,93080.0,0.01678]
[1765311826621,0.0107414,93090.0,93069.0,0.69012456]
[1765311826622,0.05428,93070.0,93069.0,0.00012456]
[1765311827013,0.0001611,93091.0,93069.0,0.08809456]
[1765311827213,0.0001611,93091.0,93077.0,0.05797]
[1765311827214,0.0107428,93078.0,93077.0,0.05797]
[1765311827420,0.009,93090.0,93077.0,0.05797]
[1765311827615,0.009,93090.0,93070.0,0.14377934]
[1765311827616,0.05428,93070.0,93069.0,0.00112456]
[1765311828830,0.05928,93070.0,93069.0,0.00112456]
[1765311829026,0.1893,93066.0,93050.0,0.14377934]
[1765311829726,0.09235,93051.0,93050.0,0.1914]
[1765311829931,0.2000458,93052.0,93051.0,0.1914]
[1765311830230,0.0107477,93035.0,93021.0,0.0107493]
[1765311830528,0.0001612,93037.0,93036.0,0.1914]
[1765311830725,0.0001612,93037.0,93036.0,0.6114]
[1765311831423,0.00013862,93052.0,93051.0,0.1914]
[1765311831617,0.00013862,93052.0,93051.0,0.6114]
[1765311831825,0.004,93066.0,93065.0,0.1914]
[1765311832019,0.004,93066.0,93044.0,0.05978]
[1765311832020,1.5,93069.0,93068.0,0.1914]
[1765311832221,0.18996555,93069.0,93068.0,0.5714]
[1765311832428,0.0001612,93078.0,93077.0,0.2021429]
[1765311832622,0.0107404,93099.0,93086.0,0.0107417]
[1765311832928,0.0107404,93099.0,93068.0,0.14377934]
[1765311832929,7.989e-05,93098.0,93089.0,0.14377934]
[1765311833124,7.989e-05,93098.0,93091.0,0.0107411]
[1765311833324,7.989e-05,93098.0,93097.0,0.09668]
[1765311833524,0.0582,93128.0,93097.0,0.09668]
[1765311833525,0.0001612,93107.0,93106.0,0.1914]
[1765311833929,0.0001612,93107.0,93106.0,0.5514]
[1765311834335,0.09235,93089.0,93088.0,0.0001612]
[1765311834630,0.0107413,93091.0,93088.0,0.0001612]
[1765311835740,0.09235,93089.0,93088.0,0.0001612]
[1765311836528,0.002,93091.0,93090.0,0.1914]
[1765311836940,0.1893,93089.0,93088.0,0.0001612]
[1765311837330,0.003,93091.0,93090.0,0.1914]
[1765311837824,0.001,93091.0,93090.0,0.1914]
[1765311838538,0.09535,93091.0,93090.0,0.1914]
[1765311838838,0.003,93091.0,93090.0,0.25118]
[1765311839033,0.001,93091.0,93090.0,0.25118]
[1765311839238,0.006,93091.0,93090.0,0.1914]
[1765311839441,0.0167413,93091.0,93090.0,0.1914]
[1765311839635,0.0157413,93091.0,93090.0,0.1914]
[1765311839826,0.1090913,93091.0,93090.0,0.1914]
[1765311840424,0.1090913,93091.0,93088.0,0.0001612]
[1765311840425,0.1893,93089.0,93088.0,0.0001612]
[1765311841336,0.1893,93089.0,93039.0,0.0537363]
[1765311841337,0.0107436,93071.0,93030.0,0.1135215]
[1765311841535,0.21,93071.0,93045.0,0.11978]
[1765311841740,0.21,93071.0,93046.0,0.1914]
[1765311842040,0.0107456,93054.0,93046.0,0.2021464]
[1765311842241,0.0107451,93058.0,93049.0,0.010746]
[1765311842454,0.09235,93054.0,93053.0,0.1074256]
[1765311842836,0.09235,93054.0,93041.0,0.0001612]
[1765311842837,0.1893,93054.0,93049.0,0.010746]
[1765311843034,0.09235,93054.0,93053.0,0.09668]
[1765311843835,0.09235,93054.0,93041.0,0.0001612]
[1765311843836,0.1893,93049.0,93041.0,0.0001612]
[1765311844341,0.1893,93049.0,93045.0,0.0107465]
[1765311845239,0.1893,93049.0,93045.0,0.0407465]
[1765311845436,0.004,93049.0,93048.0,0.1914]
[1765311845641,0.004,93049.0,93048.0,0.5514]
[1765311845842,0.004,93049.0,93048.0,0.1914]
[1765311846046,0.005,93049.0,93048.0,0.1914]
[1765311846750,0.005,93049.0,93048.0,0.2214]
[1765311846944,0.005,93049.0,93048.0,0.1914]
[1765311847441,0.004,93049.0,93048.0,0.1914]
[1765311847641,0.005,93049.0,93048.0,0.1914]
[1765311847848,0.003,93049.0,93048.0,0.2021462]
[1765311848349,0.004,93049.0,93048.0,0.2021462]
[1765311848647,0.004,93049.0,93048.0,0.2321462]
[1765311848839,0.004,93049.0,93048.0,0.5921462]
[1765311849845,0.17378,93044.0,93043.0,0.3634668]
[1765311850050,0.1845267,93044.0,93043.0,0.35272]
[1765311850551,0.17378,93044.0,93043.0,0.35272]
[1765311850745,0.0001612,93059.0,93050.0,0.35272]
[1765311851450,0.17378,93051.0,93050.0,0.35272]
[1765311852134,0.35894,93051.0,93050.0,0.35272]
[1765311852852,0.17378,93051.0,93050.0,0.35272]
[1765311853152,0.0061612,93059.0,93051.0,0.0107459]
[1765311853455,0.0001612,93059.0,93051.0,0.0107459]
[1765311853641,0.17378,93052.0,93051.0,0.1850159]
[1765311853841,0.17378,93052.0,93051.0,0.3634659]
[1765311854343,0.1739412,93059.0,93058.0,0.3634651]
[1765311855048,0.1739412,93059.0,93058.0,0.36752]
[1765311855249,0.3591012,93059.0,93058.0,0.36752]
[1765311855451,0.0001612,93059.0,93058.0,0.36752]
[1765311855849,0.0011612,93059.0,93058.0,0.36752]
[1765311856538,0.1799412,93059.0,93058.0,0.36752]
[1765311856739,0.1809412,93059.0,93058.0,0.36752]
[1765311856952,0.3661012,93059.0,93058.0,0.36752]
[1765311857545,0.0071612,93059.0,93058.0,0.36752]
[1765311857850,0.3661012,93059.0,93058.0,0.0148]
[1765311858551,0.3661012,93059.0,93058.0,0.18907]
[1765311858750,0.1809412,93059.0,93058.0,0.36752]
[1765311858946,0.0071612,93059.0,93058.0,0.36752]
[1765311859347,0.0013838,93059.0,93058.0,0.73752]
[1765311859546,0.17173,93075.0,93074.0,0.34446]
[1765311859942,0.0107403,93100.0,93085.0,0.34446]
[1765311860147,0.0107403,93100.0,93071.0,0.10461]
[1765311860148,0.1824715,93089.0,93088.0,0.34446]
[1765311860357,0.37529242,93089.0,93088.0,0.34446]
[1765311860553,0.0107412,93092.0,93091.0,0.34446]
[1765311860759,0.3520408,93096.0,93095.0,0.17437]
[1765311860961,0.47197678,93096.0,93085.0,0.0107418]
[1765311861259,0.3520408,93095.0,93094.0,0.17437]
[1765311861556,0.0107412,93092.0,93091.0,0.34446]
[1765311861757,0.1824708,93095.0,93094.0,0.34446]
[1765311861953,0.1824708,93095.0,93089.0,0.0107414]
[1765311861954,0.3413,93090.0,93089.0,0.0107414]
[1765311862161,0.3413,93085.0,93084.0,0.17437]
[1765311862953,0.3413,93085.0,93084.0,0.34446]
[1765311863358,0.17173,93085.0,93084.0,0.34446]
[1765311863752,0.17773,93085.0,93084.0,0.34446]
[1765311864656,0.17773,93085.0,93079.0,0.0001612]
[1765311864657,0.3413,93080.0,93079.0,0.0001612]
[1765311865755,0.36894957,93080.0,93079.0,0.0001612]
[1765311865953,0.37094957,93080.0,93079.0,0.0011612]
[1765311866456,0.3413,93059.0,93056.0,0.0107452]
[1765311866659,0.352045,93059.0,93056.0,0.0107452]
[1765311867048,0.352045,93059.0,93054.0,0.0107455]
[1765311867455,0.352045,93059.0,93049.0,0.0001612]
[1765311867961,0.352045,93059.0,93053.0,0.0107456]
[1765311868350,0.352045,93059.0,93050.0,0.010746]
[1765311868551,0.353045,93059.0,93058.0,0.0158]
[1765311868763,0.354045,93059.0,93058.0,0.0168]
[1765311869554,0.37771095,93059.0,93058.0,0.0168]
[1765311869755,0.76771095,93059.0,93058.0,0.0168]
[1765311869952,0.352046,93050.0,93049.0,0.0001612]
[1765311871252,0.353046,93050.0,93049.0,0.0011612]
[1765311872463,0.354046,93050.0,93049.0,0.0011612]
[1765311873353,0.17173,93025.0,93024.0,0.1851189]
[1765311873550,0.3413,93025.0,93024.0,0.3552089]
[1765311873759,0.3413,93025.0,93024.0,0.1851189]
[1765311873966,0.3413,93021.0,93020.0,0.17437]
[1765311874157,0.3413,93017.0,93016.0,0.3552099]
[1765311874752,0.3413,93017.0,93016.0,0.34446]
[1765311874958,0.44872,93016.0,93008.0,0.0107508]
[1765311875153,0.44872,93016.0,93000.0,0.34864584]
[1765311875154,0.44872,93016.0,93000.0,0.01291836]
[1765311875458,0.44872,93016.0,93000.0,0.30908584]
[1765311875659,0.44872,93016.0,93000.0,0.00216666]
[1765311876062,0.44872,93016.0,93002.0,0.0107515]
[1765311876359,0.44872,93016.0,93000.0,0.00216666]
[1765311876966,0.44972,93016.0,93000.0,0.00216666]
[1765311877162,0.44972,93016.0,92990.0,0.24294457]
[1765311877163,0.3413,92991.0,92990.0,0.00107539]
[1765311877560,0.3413,92991.0,92980.0,0.00292548]
[1765311877561,0.10742,92988.0,92980.0,0.00292548]
[1765311877867,0.3413,92981.0,92980.0,0.00292548]
[1765311878364,0.34138584,92981.0,92980.0,0.00292548]
[1765311879557,0.35213984,92981.0,92980.0,0.00292548]
[1765311879767,0.34138584,92981.0,92980.0,0.00292548]
[1765311879979,0.34238584,92981.0,92980.0,0.00292548]
[1765311880163,0.17381584,92981.0,92980.0,0.34738548]
[1765311880364,0.34338584,92981.0,92980.0,0.00292548]
[1765311884067,0.34338584,92981.0,92980.0,0.34738548]
[1765311884068,0.17381584,92981.0,92980.0,0.34738548]
[1765311884375,0.34338584,92981.0,92980.0,0.34738548]
[1765311884569,0.00208584,92981.0,92980.0,0.70738548]
[1765311884964,0.34338584,92981.0,92980.0,0.34738548]
[1765311885172,0.17381584,92981.0,92980.0,0.71738548]
[1765311885468,0.00208584,92981.0,92980.0,0.71738548]
[1765311885675,0.3413,92999.0,92998.0,0.010752]
[1765311886062,0.3413,92999.0,92998.0,0.355212]
[1765311886475,0.00016131,93000.0,92999.0,0.34446]
[1765311886876,0.10742,93060.0,93009.0,0.34446]
[1765311887065,0.10742,93060.0,93026.0,0.24186918]
[1765311887066,0.16957,93027.0,93026.0,0.24186918]
[1765311887371,0.3413,93022.0,93021.0,0.0107493]
[1765311888078,0.17173,93013.0,93012.0,0.35537171]
[1765311888376,0.17173,93013.0,93012.0,0.68537171]
[1765311888962,0.15545,93018.0,93017.0,0.0107497]
[1765311889271,0.31758,93018.0,93017.0,0.0107497]
[1765311889471,0.15545,93015.0,93014.0,0.0107501]
[1765311889667,0.15545,93015.0,93014.0,0.1746801]
[1765311890172,0.31758,93015.0,93014.0,0.0107501]
[1765311890577,0.31758,93015.0,93014.0,0.3278401]
[1765311890970,0.31858,93015.0,93014.0,0.3288401]
[1765311891163,0.31958,93015.0,93014.0,0.3308401]
[1765311891368,0.31958,93015.0,93014.0,0.1776801]
[1765311891572,0.31958,93015.0,93014.0,0.0137501]
[1765311891774,0.56033,93015.0,93014.0,0.003]
[1765311892167,0.56033,93015.0,93003.0,0.0107513]
[1765311892168,0.31758,92995.0,92994.0,0.0107524]
[1765311892362,0.31758,92990.0,92989.0,0.010753]
[1765311892770,0.31758,92981.0,92980.0,0.00292548]
[1765311894178,0.31858,92981.0,92980.0,0.00392548]
[1765311895569,0.329334,92981.0,92980.0,0.00392548]
[1765311896884,0.330334,92981.0,92980.0,0.00392548]
[1765311900783,0.330334,92981.0,92965.0,0.00107568]
[1765311900784,0.31758,92966.0,92965.0,0.00107568]
[1765311901275,0.31758,92966.0,92950.0,0.15150736]